fUST/lending_fUST_20250427
["ID","MTS","AMOUNT","RATE_DAILY","PERIOD"]
[359143553,1745736648803,-1654.68,0.00017534,2]
[359143554,1745736648812,-1434.33,0.00017534,2]
[359143555,1745736648822,-151.0,0.00017534,2]
[359143556,1745736648832,-151.0,0.00017534,2]
[359143557,1745736648841,-400.0,0.00017534,2]
[359143558,1745736648851,-269.738534,0.00017534,2]
[359143559,1745736648860,-200.0,0.00017534,2]
[359143560,1745736648870,-400.0,0.00017534,2]
[359143561,1745736648879,-400.0,0.00017534,2]
[359143562,1745736648889,-1808.25,0.00017534,2]
[359143563,1745736648899,-200.0,0.00017534,2]
[359143564,1745736648908,-400.0,0.00017534,2]
[359143565,1745736648917,-400.0,0.00017534,2]
[359143566,1745736648927,-200.0,0.00017534,2]
[359143567,1745736648937,-400.0,0.00017534,2]
[359143568,1745736648946,-200.0,0.00017534,2]
[359143569,1745736648956,-400.0,0.00017534,2]
[359143570,1745736648965,-200.0,0.00017534,2]
[359143571,1745736648975,-207.41,0.00017534,2]
[359143572,1745736648984,-400.0,0.00017534,2]
[359143573,1745736648994,-468.26,0.00017534,2]
[359143574,1745736649003,-151.0,0.00017534,2]
[359143575,1745736649013,-434.12,0.00017534,2]
[359143576,1745736649023,-400.0,0.00017534,2]
[359143577,1745736649032,-277.811724,0.00017534,2]
[359143578,1745736649041,-400.0,0.00017534,2]
[359143579,1745736649052,-3200.87,0.00017534,2]
[359143580,1745736649061,-400.0,0.00017534,2]
[359143581,1745736649070,-400.0,0.00017534,2]
[359143582,1745736649080,-400.0,0.00017534,2]
[359143583,1745736649090,-400.0,0.00017534,2]
[359143584,1745736649099,-400.0,0.00017534,2]
[359143585,1745736649108,-187.44922394,0.00017534,2]
[359143586,1745736649118,-1332.63,0.00017534,2]
[359143587,1745736649127,-579.6,0.00017534,2]
[359143588,1745736649137,-2279.76,0.00017534,2]
[359143589,1745736649146,-400.0,0.00017534,2]
[359143590,1745736649156,-2065.97,0.00017534,2]
[359143591,1745736649166,-2379.01,0.00017534,2]
[359143592,1745736649175,-2768.77,0.00017534,2]
[359143593,1745736649184,-400.0,0.00017534,2]
[359143594,1745736649194,-151.0,0.00017534,2]
[359143595,1745736649203,-1832.58,0.00017534,2]
[359143596,1745736649212,-400.0,0.00017534,2]
[359143597,1745736649222,-1827.07,0.00017534,2]
[359143598,1745736649231,-275.548741,0.00017534,2]
[359143599,1745736649240,-275.548741,0.00017534,2]
[359143600,1745736649250,-2148.35,0.00017534,2]
[359143601,1745736649260,-2258.08,0.00017534,2]
[359143602,1745736649269,-400.0,0.00017534,2]
[359143603,1745736649283,-1691.21,0.00017534,2]
[359143604,1745736649292,-400.0,0.00017534,2]
[359143605,1745736649302,-2008.57,0.00017534,2]
[359143606,1745736649312,-883.838721,0.00017534,2]
[359143607,1745736649322,-400.0,0.00017534,2]
[359143608,1745736649332,-152.667501,0.00017534,2]
[359143609,1745736649341,-883.838721,0.00017534,2]
[359143610,1745736649351,-152.667501,0.00017534,2]
[359143611,1745736649360,-400.0,0.00017534,2]
[359143612,1745736649371,-500.0,0.00017534,2]
[359143613,1745736649380,-400.0,0.00017534,2]
[359143614,1745736649389,-3413.76,0.00017534,2]
[359143615,1745736649398,-300.0,0.00017534,2]
[359143616,1745736649408,-300.0,0.00017534,2]
[359143617,1745736649417,-500.0,0.00017534,2]
[359143618,1745736649427,-400.0,0.00017534,2]
[359143619,1745736649436,-605.24,0.00017534,2]
[359143620,1745736649446,-400.0,0.00017534,2]
[359143621,1745736649455,-3041.04,0.00017534,2]
[359143622,1745736649465,-400.0,0.00017534,2]
[359143623,1745736649475,-400.0,0.00017534,2]
[359143624,1745736649484,-1837.86,0.00017534,2]
[359143625,1745736649493,-1894.46,0.00017534,2]
[359143626,1745736649503,-400.0,0.00017534,2]
[359143627,1745736649512,-2295.8,0.00017534,2]
[359143628,1745736649520,-3850.12,0.00017534,2]
[359143629,1745736649530,-1471.33,0.00017534,2]
[359143630,1745736649539,-400.0,0.00017534,2]
[359143631,1745736649548,-400.0,0.00017534,2]
[359143632,1745736649558,-2159.5,0.00017534,2]
[359143633,1745736649567,-1086.8,0.00017534,2]
[359143634,1745736649576,-2088.56,0.00017534,2]
[359143635,1745736649586,-1094.57,0.00017534,2]
[359143636,1745736649596,-939.65,0.00017534,2]
[359143637,1745736649606,-814.42,0.00017534,2]
[359143638,1745736649616,-151.0,0.00017534,2]
[359143639,1745736649625,-406.83,0.00017534,2]
[359143640,1745736649635,-1624.52,0.00017534,2]
[359143641,1745736649644,-2428.93,0.00017534,2]
[359143642,1745736649654,-400.0,0.00017534,2]
[359143643,1745736649663,-400.0,0.00017534,2]
[359143644,1745736649777,-301.46027631,0.00017693,2]
[359143645,1745736649787,-151.0,0.00017808,2]
[359143646,1745736649797,-151.0,0.00017808,2]
[359143647,1745736649807,-400.0,0.00017808,2]
[359143648,1745736649816,-200.0,0.00017808,2]
[359143649,1745736649826,-400.0,0.00017808,2]
[359143650,1745736649835,-400.0,0.00017808,2]
[359143651,1745736649845,-151.0,0.00017808,2]
[359143652,1745736649854,-400.0,0.00017808,2]
[359143653,1745736649863,-1513.54,0.00017808,2]
[359143654,1745736649872,-400.0,0.00017808,2]
[359143655,1745736649881,-400.0,0.00017808,2]
[359143656,1745736649890,-151.0,0.00017808,2]
[359143657,1745736649900,-400.0,0.00017808,2]
[359143658,1745736649910,-300.26,0.00017808,2]
[359143659,1745736649919,-151.0,0.00017808,2]
[359143660,1745736649928,-227.52683731,0.00017808,2]
[359143661,1745736649937,-400.0,0.00017808,2]
[359143662,1745736649946,-400.0,0.00017808,2]
[359143663,1745736649956,-331.48,0.00017808,2]
[359143664,1745736649965,-400.0,0.00017808,2]
[359143665,1745736649974,-1430.55,0.00017808,2]
[359143666,1745736649983,-151.0,0.00017808,2]
[359143667,1745736649992,-494.83,0.00017808,2]
[359143668,1745736650001,-1654.68,0.00017808,2]
[359143669,1745736650011,-1434.33,0.00017808,2]
[359143670,1745736650020,-151.0,0.00017808,2]
[359143671,1745736650029,-151.0,0.00017808,2]
[359143672,1745736650038,-400.0,0.00017808,2]
[359143673,1745736650047,-400.0,0.00017808,2]
[359143674,1745736650056,-400.0,0.00017808,2]
[359143675,1745736650065,-1808.25,0.00017808,2]
[359143676,1745736650074,-400.0,0.00017808,2]
[359143677,1745736650083,-400.0,0.00017808,2]
[359143678,1745736650092,-400.0,0.00017808,2]
[359143679,1745736650101,-300.0,0.00017808,2]
[359143680,1745736650110,-400.0,0.00017808,2]
[359143681,1745736650119,-468.26,0.00017808,2]
[359143682,1745736650129,-151.0,0.00017808,2]
[359143683,1745736650138,-400.0,0.00017808,2]
[359143684,1745736650147,-400.0,0.00017808,2]
[359143685,1745736650157,-3200.87,0.00017808,2]
[359143686,1745736650167,-400.0,0.00017808,2]
[359143687,1745736650176,-400.0,0.00017808,2]
[359143688,1745736650185,-200.0,0.00017808,2]
[359143689,1745736650194,-400.0,0.00017808,2]
[359143690,1745736650203,-400.0,0.00017808,2]
[359143691,1745736650212,-1332.63,0.00017808,2]
[359143692,1745736650222,-579.6,0.00017808,2]
[359143693,1745736650231,-2279.76,0.00017808,2]
[359143694,1745736650239,-500.0,0.00017808,2]
[359143695,1745736650248,-2065.97,0.00017808,2]
[359143696,1745736650258,-2379.01,0.00017808,2]
[359143697,1745736650267,-2768.77,0.00017808,2]
[359143698,1745736650276,-400.0,0.00017808,2]
[359143699,1745736650285,-151.0,0.00017808,2]
[359143700,1745736650294,-1832.58,0.00017808,2]
[359143701,1745736650303,-400.0,0.00017808,2]
[359143702,1745736650312,-1827.07,0.00017808,2]
[359143703,1745736650321,-275.548741,0.00017808,2]
[359143704,1745736650331,-275.548741,0.00017808,2]
[359143705,1745736650340,-2148.35,0.00017808,2]
[359143706,1745736650350,-2258.08,0.00017808,2]
[359143707,1745736650359,-400.0,0.00017808,2]
[359143708,1745736650368,-1691.21,0.00017808,2]
[359143709,1745736650378,-400.0,0.00017808,2]
[359143710,1745736650387,-2008.57,0.00017808,2]
[359143711,1745736650396,-883.838721,0.00017808,2]
[359143712,1745736650406,-400.0,0.00017808,2]
[359143713,1745736650414,-152.667501,0.00017808,2]
[359143714,1745736650424,-883.838721,0.00017808,2]
[359143715,1745736650433,-152.667501,0.00017808,2]
[359143716,1745736650442,-400.0,0.00017808,2]
[359143717,1745736650451,-400.0,0.00017808,2]
[359143718,1745736650460,-3413.76,0.00017808,2]
[359143719,1745736650469,-309.04622644,0.00017808,2]
[359143720,1745736650479,-605.24,0.00017808,2]
[359143721,1745736650489,-400.0,0.00017808,2]
[359143722,1745736650498,-3041.04,0.00017808,2]
[359143723,1745736650507,-300.0,0.00017808,2]
[359143724,1745736650517,-400.0,0.00017808,2]
[359143725,1745736650526,-1837.86,0.00017808,2]
[359143726,1745736650535,-1894.46,0.00017808,2]
[359143727,1745736650545,-400.0,0.00017808,2]
[359143728,1745736650554,-2295.8,0.00017808,2]
[359143729,1745736650564,-3850.12,0.00017808,2]
[359143730,1745736650573,-1471.33,0.00017808,2]
[359143731,1745736650582,-400.0,0.00017808,2]
[359143732,1745736650592,-400.0,0.00017808,2]
[359143733,1745736650601,-2159.5,0.00017808,2]
[359143734,1745736650611,-1086.8,0.00017808,2]
[359143735,1745736650620,-2088.56,0.00017808,2]
[359143736,1745736650630,-1094.57,0.00017808,2]
[359143737,1745736650639,-939.65,0.00017808,2]
[359143738,1745736650649,-814.42,0.00017808,2]
[359143739,1745736650658,-151.0,0.00017808,2]
[359143740,1745736650668,-406.83,0.00017808,2]
[359143741,1745736650677,-1624.52,0.00017808,2]
[359143742,1745736650687,-2428.93,0.00017808,2]
[359143743,1745736650696,-400.0,0.00017808,2]
[359143744,1745736650706,-430.23,0.00017808,2]
[359143745,1745736650716,-420.0,0.00017855,2]
[359143746,1745736650726,-588.88960299,0.00017873,2]
[359143747,1745736650735,-501.05914625,0.00017873,2]
[359143748,1745736650745,-500.0,0.00017873,2]
[359143749,1745736650754,-500.0,0.00017873,2]
[359143750,1745736650764,-500.54734326,0.00017873,2]
[359143751,1745736650774,-236.1534153,0.00017873,2]
[359143752,1745736650783,-584.66115124,0.00017873,2]
[359143753,1745736650793,-500.0,0.00017873,2]
[359143754,1745736650802,-501.36543298,0.00017873,2]
[359143755,1745736650812,-500.0,0.00017873,2]
[359143756,1745736650822,-500.0,0.00017887,2]
[359143757,1745736650831,-500.0,0.00017887,2]
[359143758,1745736650841,-500.0,0.00017887,2]
[359143759,1745736650851,-500.0,0.00017887,2]
[359143760,1745736650860,-500.0,0.00017887,2]
[359143761,1745736650869,-5228.81884026,0.00017902,2]
[359143762,1745736650879,-500.0,0.00018077,2]
[359143763,1745736650888,-500.0,0.00018077,2]
[359143764,1745736650898,-151.0,0.00018082,2]
[359143765,1745736650907,-428.73729043,0.00018082,2]
[359143766,1745736650916,-400.0,0.00018082,2]
[359143767,1745736650926,-400.0,0.00018082,2]
[359143768,1745736650935,-151.0,0.00018082,2]
[359143769,1745736650945,-400.0,0.00018082,2]
[359143770,1745736650954,-1513.54,0.00018082,2]
[359143771,1745736650964,-400.0,0.00018082,2]
[359143772,1745736650974,-400.0,0.00018082,2]
[359143773,1745736650983,-400.0,0.00018082,2]
[359143774,1745736650992,-288.593482,0.00018082,2]
[359143775,1745736651002,-400.0,0.00018082,2]
[359143776,1745736651011,-400.0,0.00018082,2]
[359143777,1745736651020,-400.0,0.00018082,2]
[359143778,1745736651029,-1430.55,0.00018082,2]
[359143779,1745736651039,-151.0,0.00018082,2]
[359143780,1745736651048,-1654.68,0.00018082,2]
[359143781,1745736651058,-1434.33,0.00018082,2]
[359143782,1745736651067,-151.0,0.00018082,2]
[359143783,1745736651076,-151.0,0.00018082,2]
[359143784,1745736651086,-400.0,0.00018082,2]
[359143785,1745736651095,-400.0,0.00018082,2]
[359143786,1745736651105,-400.0,0.00018082,2]
[359143787,1745736651114,-1808.25,0.00018082,2]
[359143788,1745736651123,-400.0,0.00018082,2]
[359143789,1745736651132,-400.0,0.00018082,2]
[359143790,1745736651141,-218.78,0.00018082,2]
[359143791,1745736651150,-400.0,0.00018082,2]
[359143792,1745736651160,-468.26,0.00018082,2]
[359143793,1745736651170,-151.0,0.00018082,2]
[359143794,1745736651178,-400.0,0.00018082,2]
[359143795,1745736651188,-400.0,0.00018082,2]
[359143796,1745736651196,-3200.87,0.00018082,2]
[359143797,1745736651206,-400.0,0.00018082,2]
[359143798,1745736651215,-400.0,0.00018082,2]
[359143799,1745736651224,-400.0,0.00018082,2]
[359143800,1745736651233,-400.0,0.00018082,2]
[359143801,1745736651243,-1332.63,0.00018082,2]
[359143802,1745736651252,-579.6,0.00018082,2]
[359143803,1745736651261,-2279.76,0.00018082,2]
[359143804,1745736651271,-2065.97,0.00018082,2]
[359143805,1745736651283,-2379.01,0.00018082,2]
[359143806,1745736651292,-2768.77,0.00018082,2]
[359143807,1745736651302,-400.0,0.00018082,2]
[359143808,1745736651311,-151.0,0.00018082,2]
[359143809,1745736651321,-1832.58,0.00018082,2]
[359143810,1745736651330,-400.0,0.00018082,2]
[359143811,1745736651339,-1827.07,0.00018082,2]
[359143812,1745736651349,-275.548741,0.00018082,2]
[359143813,1745736651359,-275.548741,0.00018082,2]
[359143814,1745736651368,-2148.35,0.00018082,2]
[359143815,1745736651378,-2258.08,0.00018082,2]
[359143816,1745736651387,-400.0,0.00018082,2]
[359143817,1745736651396,-1691.21,0.00018082,2]
[359143818,1745736651406,-400.0,0.00018082,2]
[359143819,1745736651415,-2008.57,0.00018082,2]
[359143820,1745736651424,-883.838721,0.00018082,2]
[359143821,1745736651434,-200.0,0.00018082,2]
[359143822,1745736651443,-152.667501,0.00018082,2]
[359143823,1745736651453,-883.838721,0.00018082,2]
[359143824,1745736651462,-152.667501,0.00018082,2]
[359143825,1745736651471,-400.0,0.00018082,2]
[359143826,1745736651480,-400.0,0.00018082,2]
[359143827,1745736651489,-3413.76,0.00018082,2]
[359143828,1745736651499,-605.24,0.00018082,2]
[359143829,1745736651508,-300.0,0.00018082,2]
[359143830,1745736651517,-3041.04,0.00018082,2]
[359143831,1745736651527,-400.0,0.00018082,2]
[359143832,1745736651536,-1837.86,0.00018082,2]
[359143833,1745736651545,-1894.46,0.00018082,2]
[359143834,1745736651555,-400.0,0.00018082,2]
[359143835,1745736651565,-2295.8,0.00018082,2]
[359143836,1745736651574,-3850.12,0.00018082,2]
[359143837,1745736651583,-1471.33,0.00018082,2]
[359143838,1745736651592,-400.0,0.00018082,2]
[359143839,1745736651601,-400.0,0.00018082,2]
[359143840,1745736651610,-2159.5,0.00018082,2]
[359143841,1745736651619,-1086.8,0.00018082,2]
[359143842,1745736651629,-141.79527719,0.00018082,2]
[359143843,1745736651759,-1946.76472281,0.00018082,2]
[359143844,1745736651769,-1094.57,0.00018082,2]
[359143845,1745736651779,-939.65,0.00018082,2]
[359143846,1745736651790,-814.42,0.00018082,2]
[359143847,1745736651800,-227.796643,0.00018082,2]
[359143848,1745736651809,-406.83,0.00018082,2]
[359143849,1745736651820,-1624.52,0.00018082,2]
[359143850,1745736651829,-2428.93,0.00018082,2]
[359143851,1745736651839,-400.0,0.00018082,2]
[359143852,1745736651848,-500.0,0.00018088,2]
[359143853,1745736651964,-151.0,0.00018356,2]
[359143854,1745736651974,-400.0,0.00018356,2]
[359143855,1745736651984,-545.90174426,0.00018356,2]
[359143856,1745736651994,-151.0,0.00018356,2]
[359143857,1745736652003,-400.0,0.00018356,2]
[359143858,1745736652013,-1513.54,0.00018356,2]
[359143859,1745736652023,-500.0,0.00018356,2]
[359143860,1745736652032,-400.0,0.00018356,2]
[359143861,1745736652042,-400.0,0.00018356,2]
[359143862,1745736652052,-400.0,0.00018356,2]
[359143863,1745736652061,-400.0,0.00018356,2]
[359143864,1745736652072,-400.0,0.00018356,2]
[359143865,1745736652082,-1430.55,0.00018356,2]
[359143866,1745736652092,-151.0,0.00018356,2]
[359143867,1745736652101,-1654.68,0.00018356,2]
[359143868,1745736652110,-29.84688863,0.00018356,2]
[359143869,1745736652122,-1404.48311137,0.00018356,2]
[359143870,1745736652132,-151.0,0.00018356,2]
[359143871,1745736652141,-151.0,0.00018356,2]
[359143872,1745736652151,-400.0,0.00018356,2]
[359143873,1745736652161,-400.0,0.00018356,2]
[359143874,1745736652170,-400.0,0.00018356,2]
[359143875,1745736652180,-1808.25,0.00018356,2]
[359143876,1745736652189,-400.0,0.00018356,2]
[359143877,1745736652199,-153.63401184,0.00018356,2]
[359143878,1745736652208,-280.18,0.00018356,2]
[359143879,1745736652218,-468.26,0.00018356,2]
[359143880,1745736652227,-258.714339,0.00018356,2]
[359143881,1745736652236,-254.48,0.00018356,2]
[359143882,1745736652246,-400.0,0.00018356,2]
[359143883,1745736652255,-3200.87,0.00018356,2]
[359143884,1745736652264,-400.0,0.00018356,2]
[359143885,1745736652276,-400.0,0.00018356,2]
[359143886,1745736652286,-400.0,0.00018356,2]
[359143887,1745736652295,-400.0,0.00018356,2]
[359143888,1745736652305,-1332.63,0.00018356,2]
[359143889,1745736652314,-579.6,0.00018356,2]
[359143890,1745736652323,-1891.75390017,0.00018356,2]
[359143891,1745736652335,-388.00609983,0.00018356,2]
[359143892,1745736652345,-2065.97,0.00018356,2]
[359143893,1745736652354,-1705.59716091,0.00018356,2]
[359143894,1745736652367,-510.89704245,0.00018356,2]
[359143895,1745736652378,-162.51579664,0.00018356,2]
[359143896,1745736652387,-2768.77,0.00018356,2]
[359143897,1745736652396,-400.0,0.00018356,2]
[359143898,1745736652405,-151.0,0.00018356,2]
[359143899,1745736652414,-1832.58,0.00018356,2]
[359143900,1745736652424,-400.0,0.00018356,2]
[359143901,1745736652433,-1827.07,0.00018356,2]
[359143902,1745736652442,-275.548741,0.00018356,2]
[359143903,1745736652452,-275.548741,0.00018356,2]
[359143904,1745736652462,-2148.35,0.00018356,2]
[359143905,1745736652471,-2258.08,0.00018356,2]
[359143906,1745736652480,-400.0,0.00018356,2]
[359143907,1745736652489,-1691.21,0.00018356,2]
[359143908,1745736652499,-400.0,0.00018356,2]
[359143909,1745736652508,-2008.57,0.00018356,2]
[359143910,1745736652517,-883.838721,0.00018356,2]
[359143911,1745736652526,-152.667501,0.00018356,2]
[359143912,1745736652535,-883.838721,0.00018356,2]
[359143913,1745736652545,-152.667501,0.00018356,2]
[359143914,1745736652554,-400.0,0.00018356,2]
[359143915,1745736652563,-400.0,0.00018356,2]
[359143916,1745736652573,-3413.76,0.00018356,2]
[359143917,1745736652582,-605.24,0.00018356,2]
[359143918,1745736652591,-3041.04,0.00018356,2]
[359143919,1745736652600,-400.0,0.00018356,2]
[359143920,1745736652610,-1837.86,0.00018356,2]
[359143921,1745736652619,-1894.46,0.00018356,2]
[359143922,1745736652629,-400.0,0.00018356,2]
[359143923,1745736652638,-1125.32717752,0.00018356,2]
[359143924,1745736652687,-400.0,0.00016438,2]
[359143925,1745736652697,-400.0,0.00016438,2]
[359143926,1745736652706,-1170.47282248,0.00018356,2]
[359143927,1745736652716,-1104.82708064,0.00018356,2]
[359143928,1745736652727,-2745.29291936,0.00018356,2]
[359143929,1745736652737,-1242.54378604,0.00018356,2]
[359143930,1745736652748,-228.78621396,0.00018356,2]
[359143931,1745736652758,-400.0,0.00018356,2]
[359143932,1745736652767,-424.81,0.00018356,2]
[359143933,1745736652776,-2159.5,0.00018356,2]
[359143934,1745736652786,-1086.8,0.00018356,2]
[359143935,1745736652795,-2088.56,0.00018356,2]
[359143936,1745736652805,-1094.57,0.00018356,2]
[359143937,1745736652815,-329.11015735,0.00018356,2]
[359143938,1745736652826,-610.53984265,0.00018356,2]
[359143939,1745736652836,-489.03376422,0.00018356,2]
[359143946,1745737129306,278.34999989,0.00019588,17]
[359143947,1745737129780,278.34999989,0.00021088,33]
[359143957,1745737728384,4460.51550408,0.00021,10]
[359143975,1745737832658,-238.522432,0.00014804,2]
[359143976,1745737832816,-270.0,0.00015095,2]
[359143977,1745737832826,-262.29804897,0.00015095,2]
[359143978,1745737832836,-500.0,0.00015095,2]
[359143979,1745737832845,-175.4865513,0.00015095,2]
[359143980,1745737832856,-486.30430259,0.00015095,2]
[359143981,1745737832865,-500.0,0.00015096,2]
[359143982,1745737832875,-798.94717102,0.00015096,2]
[359143983,1745737832885,-798.94717102,0.00015096,2]
[359143984,1745737832894,-798.94717102,0.00015096,2]
[359143985,1745737832904,-798.94717102,0.00015096,2]
[359143986,1745737832913,-798.94717102,0.00015096,2]
[359143987,1745737832922,-798.94717102,0.00015096,2]
[359143988,1745737832932,-798.94717102,0.00015096,2]
[359143989,1745737832941,-798.94717102,0.00015096,2]
[359143990,1745737832951,-798.94717102,0.00015096,2]
[359143991,1745737832961,-798.94717102,0.00015096,2]
[359143992,1745737832971,-798.94717102,0.00015096,2]
[359143993,1745737832982,-798.94717102,0.00015096,2]
[359143994,1745737832991,-798.94717102,0.00015096,2]
[359143995,1745737833001,-798.94717102,0.00015096,2]
[359143996,1745737833011,-798.94717102,0.00015096,2]
[359143997,1745737833020,-798.94717102,0.00015096,2]
[359143998,1745737833030,-798.94717102,0.00015096,2]
[359143999,1745737833040,-798.94717102,0.00015096,2]
[359144000,1745737833049,-798.94717102,0.00015096,2]
[359144001,1745737833059,-798.94717102,0.00015096,2]
[359144002,1745737833069,-798.94717102,0.00015096,2]
[359144003,1745737833079,-798.94717102,0.00015096,2]
[359144004,1745737833088,-798.94717102,0.00015096,2]
[359144005,1745737833097,-798.94717102,0.00015096,2]
[359144006,1745737833109,-798.94717102,0.00015096,2]
[359144007,1745737833119,-798.94717102,0.00015096,2]
[359144008,1745737833129,-798.94717102,0.00015096,2]
[359144009,1745737833139,-798.94717102,0.00015096,2]
[359144010,1745737833148,-798.94717102,0.00015096,2]
[359144011,1745737833158,-798.94717102,0.00015096,2]
[359144012,1745737833168,-883.43160054,0.00015096,2]
[359144013,1745737833178,-883.43160054,0.00015096,2]
[359144014,1745737833188,-883.43160054,0.00015096,2]
[359144015,1745737833198,-883.43160054,0.00015096,2]
[359144016,1745737833208,-883.43160054,0.00015096,2]
[359144017,1745737833218,-883.43160054,0.00015096,2]
[359144018,1745737833228,-883.43160054,0.00015096,2]
[359144019,1745737833238,-883.43160054,0.00015096,2]
[359144020,1745737833248,-883.43160054,0.00015096,2]
[359144021,1745737833258,-883.43160054,0.00015096,2]
[359144022,1745737833268,-883.43160054,0.00015096,2]
[359144023,1745737833278,-883.43160054,0.00015096,2]
[359144024,1745737833287,-883.43160054,0.00015096,2]
[359144025,1745737833298,-883.43160054,0.00015096,2]
[359144026,1745737833307,-883.43160054,0.00015096,2]
[359144027,1745737833317,-883.43160054,0.00015096,2]
[359144028,1745737833327,-883.43160054,0.00015096,2]
[359144029,1745737833337,-883.43160054,0.00015096,2]
[359144030,1745737833347,-883.43160054,0.00015096,2]
[359144031,1745737833356,-883.43160054,0.00015096,2]
[359144032,1745737833366,-883.43160054,0.00015096,2]
[359144033,1745737833376,-883.43160054,0.00015096,2]
[359144034,1745737833385,-883.43160054,0.00015096,2]
[359144035,1745737833396,-883.43160054,0.00015096,2]
[359144036,1745737833405,-883.43160054,0.00015096,2]
[359144037,1745737833415,-883.43160054,0.00015096,2]
[359144038,1745737833424,-883.43160054,0.00015096,2]
[359144039,1745737833433,-883.43160054,0.00015096,2]
[359144040,1745737833443,-844.78146803,0.00015096,2]
[359144041,1745737833453,-844.78146803,0.00015096,2]
[359144042,1745737833462,-844.78146803,0.00015096,2]
[359144043,1745737833471,-844.78146803,0.00015096,2]
[359144044,1745737833481,-844.78146803,0.00015096,2]
[359144045,1745737833490,-844.78146803,0.00015096,2]
[359144046,1745737833500,-844.78146803,0.00015096,2]
[359144047,1745737833509,-844.78146803,0.00015096,2]
[359144048,1745737833518,-844.78146803,0.00015096,2]
[359144049,1745737833527,-844.78146803,0.00015096,2]
[359144050,1745737833537,-844.78146803,0.00015096,2]
[359144051,1745737833546,-844.78146803,0.00015096,2]
[359144052,1745737833555,-844.78146803,0.00015096,2]
[359144053,1745737833565,-844.78146803,0.00015096,2]
[359144054,1745737833575,-844.78146803,0.00015096,2]
[359144055,1745737833584,-844.78146796,0.00015096,2]
[359144056,1745737833593,-500.0,0.000151,2]
[359144057,1745737833603,-396.8197002,0.000151,2]
[359144058,1745737833612,-500.0,0.000151,2]
[359144059,1745737833623,-500.0,0.000151,2]
[359144060,1745737833632,-1000.0,0.00015125,2]
[359144061,1745737833641,-250.0,0.00015125,2]
[359144062,1745737833651,-500.0,0.0001537,2]
[359144063,1745737833660,-344.94225846,0.00016164,2]
[359144064,1745737833669,-500.0,0.00016164,2]
[359144065,1745737833678,-4570.38,0.00016205,2]
[359144066,1745737833688,-1736.61781424,0.00016238,2]
[359144067,1745737833697,-1736.61781424,0.00016263,2]
[359144068,1745737833707,-1736.61781424,0.00016288,2]
[359144069,1745737833716,-50000.0,0.000163,2]
[359144070,1745737833725,-1736.61781424,0.00016313,2]
[359144071,1745737833735,-1736.61781424,0.00016338,2]
[359144072,1745737833745,-91231.31054448,0.00016338,2]
[359144103,1745737838428,-1994.57133949,0.00016338,2]
[359144105,1745737838440,-152447.11425708,0.00016338,2]
[359144107,1745737838452,-124327.00385895,0.00016338,2]
[359144109,1745737838462,-500.0,0.00016373,2]
[359144111,1745737838471,-500.0,0.00016373,2]
[359144113,1745737838481,-634.12285287,0.00016373,2]
[359144115,1745737838491,-286.89478347,0.00016373,2]
[359144117,1745737838501,-255.76135022,0.00016373,2]
[359144118,1745737838511,-500.0,0.00016373,2]
[359144119,1745737838520,-500.0,0.00016373,2]
[359144120,1745737838529,-500.0,0.00016373,2]
[359144121,1745737838539,-500.0,0.00016373,2]